[Event "GER-chT States Women 2022"]
[Site "Braunfels"]
[Date "2022.06.16"]
[Round "1.33"]
[White "Krasnopeyeva, Julia"]
[Black "Steinbacher, Claudia"]
[Result "0-1"]
[ECO "B28"]
[WhiteElo "1939"]
[BlackElo "2020"]
[Annotator "NA COMBH"]
[PlyCount "78"]
[EventDate "2022.06.15"]
[EventType "swiss"]
[EventCountry "GER"]
[SourceTitle "playchess.com"]
[Source "ChessBase"]
[SourceQuality "1"]
[TimeControl "40/5400+30:1800+30"]

1. e4 {[%emt 0:00:05]} c5 {[%emt 0:00:01]} 2. Nf3 {[%emt 0:00:10]} a6 {[%emt 0:00:03]} 3. Nc3 {[%emt 0:00:28]} Nc6 {[%emt 0:00:25]} 4. d4 {[%emt 0:00:20]} cxd4 {[%emt 0:00:03]} 5. Nxd4 {[%emt 0:00:08]} Qc7 {[%emt 0:02:53]} 6. Be3 {[%emt 0:03:29]} e6 {[%emt 0:00:57]} 7. a3 {[%emt 0:04:26]} Nf6 {[%emt 0:00:49]} 8. Be2 {[%emt 0:03:10]} Be7 {[%emt 0:01:27]} 9. Qd2 {[%emt 0:02:00]} Nxd4 {[%emt 0:06:35]} 10. Bxd4 {[%emt 0:01:59]} d6 {[%emt 0:00:31]} 11. f4 {[%emt 0:01:27]} O-O {[%emt 0:08:33]} 12. O-O {[%emt 0:04:42]} b5 {[%emt 0:13:02]} 13. Bf3 {[%emt 0:02:38]} Bb7 {[%emt 0:06:39]} 14. Be3 {[%emt 0:01:23]} Rad8 {[%emt 0:01:20]} 15. g4 {[%emt 0:00:46]} d5 {[%emt 0:01:00]} 16. e5 {[%emt 0:01:02]} Nd7 {[%emt 0:03:57]} 17. Ne2 {[%emt 0:05:34]} Rc8 {[%emt 0:01:09]} 18. Nd4 {[%emt 0:01:50]} Bc5 {[%emt 0:00:20]} 19. c3 {[%emt 0:01:25]} Nb6 {[%emt 0:04:19]} 20. Qg2 {[%emt 0:07:16]} Nc4 {[%emt 0:01:45]} 21. Bc1 {[%emt 0:00:20]} Na5 {[%emt 0:04:24]} 22. Bd1 {[%emt 0:02:23]} Qb6 {[%emt 0:04:24]} 23. Qf2 {[%emt 0:01:38]} Nc6 {[%emt 0:02:39]} 24. Be3 {[%emt 0:00:31]} a5 {[%emt 0:09:46]} 25. b4 {[%emt 0:11:00]} axb4 {[%emt 0:00:51]} 26. axb4 {[%emt 0:00:08]} Bxd4 {[%emt 0:00:04]} 27. cxd4 {[%emt 0:04:11]} Nxb4 {[%emt 0:00:13]} 28. Qb2 {[%emt 0:01:12]} Nc6 {[%emt 0:03:27]} 29. Be2 {[%emt 0:03:18]} b4 {[%emt 0:00:24]} 30. f5 {[%emt 0:03:24]} Nxe5 {[%emt 0:06:54]} 31. Bf4 {[%emt 0:05:22]} Nc4 {[%emt 0:00:18]} 32. Bxc4 {[%emt 0:00:38]} dxc4 {[%emt 0:00:24]} 33. fxe6 {[%emt 0:01:25]} fxe6 {[%emt 0:02:11]} 34. Rab1 {[%emt 0:00:20]} Qc6 {[%emt 0:01:42]} 35. Qd2 {[%emt 0:02:13]} c3 {[%emt 0:00:58]} 36. d5 {[%emt 0:01:08]} Qc5+ {[%emt 0:02:18]} 37. Qe3 {[%emt 0:02:08]} Rxf4 {[%emt 0:00:12]} 38. Qxc5 {[%emt 0:00:34]} Rxf1+ 39. Kxf1 {[%emt 0:00:25]} Rxc5 {[%emt 0:00:04]} 0-1

[Event "GER-chT States Women 2022"]
[Site "Braunfels"]
[Date "2022.06.16"]
[Round "1.34"]
[White "Peglau, Dora"]
[Black "Mader, Lena"]
[Result "1/2-1/2"]
[ECO "E81"]
[WhiteElo "2008"]
[BlackElo "1789"]
[Annotator "NA RC"]
[PlyCount "136"]
[EventDate "2022.06.15"]
[EventType "swiss"]
[EventCountry "GER"]
[SourceTitle "playchess.com"]
[Source "ChessBase"]
[SourceQuality "1"]
[TimeControl "40/5400+30:1800+30"]

1. d4 {[%emt 0:00:05]} Nf6 {[%emt 0:00:04]} 2. c4 {[%emt 0:00:17]} g6 {[%emt 0:00:05]} 3. f3 {[%emt 0:00:34]} Bg7 {[%emt 0:00:28]} 4. e4 {[%emt 0:00:15]} d6 {[%emt 0:00:11]} 5. Nc3 {[%emt 0:00:13]} O-O {[%emt 0:00:08]} 6. Be3 {[%emt 0:00:12]} c5 {[%emt 0:02:33]} 7. Nge2 {[%emt 0:00:38]} cxd4 {[%emt 0:01:22]} 8. Nxd4 {[%emt 0:00:12]} Nc6 {[%emt 0:00:12]} 9. Be2 {[%emt 0:00:39]} Bd7 {[%emt 0:05:05]} 10. O-O {[%emt 0:01:10]} Rc8 {[%emt 0:05:30]} 11. Qd2 {[%emt 0:08:02]} a6 {[%emt 0:07:01]} 12. Rfd1 {[%emt 0:02:48]} Nxd4 {[%emt 0:02:29]} 13. Bxd4 {[%emt 0:00:13]} Be6 {[%emt 0:02:35]} 14. b3 {[%emt 0:02:26]} Bd7 {[%emt 0:02:53]} 15. Rac1 {[%emt 0:03:29]} Bc6 {[%emt 0:00:39]} 16. a4 {[%emt 0:03:14]} Nd7 {[%emt 0:08:22]} 17. Be3 {[%emt 0:04:57]} Nf6 {[%emt 0:06:03]} 18. b4 {[%emt 0:08:41]} Bd7 {[%emt 0:02:24]} 19. a5 {[%emt 0:09:15]} Be6 {[%emt 0:02:34]} 20. Bb6 {[%emt 0:04:03]} Qe8 {[%emt 0:00:50]} 21. Nd5 {[%emt 0:12:06]} Bxd5 {[%emt 0:05:54]} 22. cxd5 {[%emt 0:05:08]} Qa4 {[%emt 0:16:01]} 23. Kf2 {[%emt 0:10:45]} Nd7 {[%emt 0:02:38]} 24. Be3 {[%emt 0:03:07]} Nf6 {[%emt 0:03:05]} 25. Bc4 {[%emt 0:02:16]} Qd7 {[%emt 0:02:45]} 26. Rc2 {[%emt 0:01:39]} h5 {[%emt 0:07:23]} 27. Rdc1 Kh7 {[%emt 0:00:17]} 28. Bb3 {[%emt 0:02:10]} Rxc2 {[%emt 0:00:56]} 29. Qxc2 {[%emt 0:00:23]} Bh6 {[%emt 0:00:30]} 30. Bxh6 {[%emt 0:00:38]} Kxh6 {[%emt 0:00:01]} 31. Ba4 {[%emt 0:00:29]} b5 {[%emt 0:02:23]} 32. axb6 {[%emt 0:00:19]} Qb7 {[%emt 0:00:07]} 33. Qc7 {[%emt 0:00:20]} Rb8 {[%emt 0:00:22]} 34. Rc6 {[%emt 0:02:56]} g5 {[%emt 0:03:14]} 35. b5 {[%emt 0:02:20]} a5 {[%emt 0:00:18]} 36. Ke3 {[%emt 0:02:46]} Nd7 {[%emt 0:02:47]} 37. Qxb7 {[%emt 0:02:25]} Rxb7 {[%emt 0:00:01]} 38. Rc7 {[%emt 0:01:07]} Nc5 {[%emt 0:00:05]} 39. Rxb7 {[%emt 0:02:10]} Nxb7 {[%emt 0:00:01]} 40. f4 {[%emt 0:01:05]} f6 {[%emt 0:04:37]} 41. g3 {[%emt 0:31:26]} Nc5 {[%emt 0:06:20]} 42. Kd4 {[%emt 0:00:00]} Nb7 {[%emt 0:00:08]} 43. e5 fxe5+ {[%emt 0:03:11]} 44. fxe5 {[%emt 0:00:00]} g4 {[%emt 0:04:48]} 45. Bc2 {[%emt 0:00:00]} Kg5 {[%emt 0:11:23]} 46. Bh7 {[%emt 0:00:00]} Nc5 47. Bg8 a4 {[%emt 0:02:19]} 48. Bh7 {[%emt 0:00:00]} h4 {[%emt 0:03:09]} 49. Bc2 {[%emt 0:00:00]} a3 {[%emt 0:00:12]} 50. Bb1 {[%emt 0:00:00]} hxg3 {[%emt 0:01:48]} 51. hxg3 {[%emt 0:00:00]} Nb7 {[%emt 0:01:03]} 52. exd6 {[%emt 0:05:29]} exd6 {[%emt 0:00:02]} 53. Kc3 {[%emt 0:00:29]} Kf6 {[%emt 0:00:21]} 54. Kb4 {[%emt 0:02:56]} Ke5 {[%emt 0:00:08]} 55. Kc4 {[%emt 0:00:32]} Kf6 {[%emt 0:00:42]} 56. Kb3 {[%emt 0:00:59]} Ke5 {[%emt 0:00:24]} 57. Kxa3 {[%emt 0:00:05]} Kxd5 {[%emt 0:00:44]} 58. Bf5 {[%emt 0:00:51]} Kc5 {[%emt 0:01:34]} 59. Ka4 {[%emt 0:01:02]} Kxb6 {[%emt 0:00:45]} 60. Bxg4 {[%emt 0:00:09]} Nc5+ {[%emt 0:00:29]} 61. Kb4 {[%emt 0:00:07]} Ne4 {[%emt 0:00:11]} 62. Bd7 {[%emt 0:01:07]} Nxg3 {[%emt 0:00:07]} 63. Kc4 {[%emt 0:00:26]} Ne4 {[%emt 0:00:28]} 64. Kd4 {[%emt 0:00:33]} Nc5 {[%emt 0:01:39]} 65. Bc6 {[%emt 0:00:14]} Ne6+ {[%emt 0:00:14]} 66. Kd5 {[%emt 0:00:14]} Nc7+ {[%emt 0:00:08]} 67. Kxd6 {[%emt 0:00:03]} Nxb5+ {[%emt 0:00:09]} 68. Bxb5 {[%emt 0:00:09]} Kxb5 {[%emt 0:00:01]} 1/2-1/2

[Event "GER-chT States Women 2022"]
[Site "Braunfels"]
[Date "2022.06.16"]
[Round "1.35"]
[White "Bazzazi, Elnaz"]
[Black "Peglau, Mirjam"]
[Result "1/2-1/2"]
[ECO "C05"]
[WhiteElo "1749"]
[BlackElo "1834"]
[Annotator "NA RC COMBH"]
[PlyCount "116"]
[EventDate "2022.06.15"]
[EventType "swiss"]
[EventCountry "GER"]
[SourceTitle "playchess.com"]
[Source "ChessBase"]
[SourceQuality "1"]
[TimeControl "40/5400+30:1800+30"]

1. e4 {[%emt 0:00:03]} e6 {[%emt 0:00:11]} 2. d4 {[%emt 0:00:26]} d5 {[%emt 0:00:02]} 3. Nd2 {[%emt 0:00:29]} Nf6 {[%emt 0:00:13]} 4. e5 {[%emt 0:00:07]} Nfd7 {[%emt 0:00:06]} 5. Bd3 {[%emt 0:00:15]} c5 {[%emt 0:00:27]} 6. c3 {[%emt 0:00:26]} Nc6 {[%emt 0:00:15]} 7. Ne2 {[%emt 0:00:47]} Qb6 {[%emt 0:01:50]} 8. Nf3 {[%emt 0:01:36]} Be7 {[%emt 0:00:53]} 9. O-O {[%emt 0:02:20]} O-O {[%emt 0:00:47]} 10. Re1 {[%emt 0:05:47]} Re8 {[%emt 0:03:07]} 11. Bb1 {[%emt 0:09:08]} Nf8 {[%emt 0:01:38]} 12. b3 {[%emt 0:04:40]} cxd4 {[%emt 0:07:56]} 13. cxd4 {[%emt 0:01:20]} Bd7 {[%emt 0:00:30]} 14. a3 {[%emt 0:02:24]} Rac8 {[%emt 0:04:21]} 15. Bg5 {[%emt 0:04:25]} Na5 {[%emt 0:11:38]} 16. b4 {[%emt 0:11:54]} Nc4 {[%emt 0:00:41]} 17. Bxe7 {[%emt 0:03:58]} Rxe7 {[%emt 0:00:02]} 18. Nf4 {[%emt 0:04:22]} a5 {[%emt 0:05:15]} 19. Nd3 {[%emt 0:05:09]} Be8 {[%emt 0:14:08]} 20. Re2 {[%emt 0:04:10]} Rec7 {[%emt 0:00:51]} 21. h3 {[%emt 0:02:46]} Ng6 {[%emt 0:10:51]} 22. g3 {[%emt 0:05:56]} Ne7 {[%emt 0:02:22]} 23. Bc2 {[%emt 0:09:53]} Nc6 {[%emt 0:02:51]} 24. bxa5 {[%emt 0:04:19]} Qxa5 {[%emt 0:00:46]} 25. Nc5 {[%emt 0:01:27]} g6 {[%emt 0:11:58]} 26. Nb3 {[%emt 0:00:24]} Qc3 {[%emt 0:02:03]} 27. Kg2 {[%emt 0:01:18]} N6a5 {[%emt 0:01:46]} 28. Nc5 {[%emt 0:03:03]} b6 {[%emt 0:05:23]} 29. Nb3 {[%emt 0:02:45]} Nxb3 {[%emt 0:02:19]} 30. Bxb3 {[%emt 0:00:02]} Qa5 {[%emt 0:00:55]} 31. a4 {[%emt 0:01:14]} Qb4 {[%emt 0:00:45]} 32. Ne1 {[%emt 0:02:42]} Na5 {[%emt 0:01:09]} 33. Bc2 {[%emt 0:00:24]} Nc4 {[%emt 0:02:55]} 34. Rb1 {[%emt 0:02:51]} Qa5 {[%emt 0:00:40]} 35. Bb3 {[%emt 0:00:24]} Ra8 {[%emt 0:01:55]} 36. Ra2 {[%emt 0:00:33]} Qa6 {[%emt 0:02:22]} 37. Nc2 {[%emt 0:00:17]} Qa5 {[%emt 0:01:36]} 38. Na3 {[%emt 0:03:19]} Nxa3 {[%emt 0:00:52]} 39. Rxa3 {[%emt 0:00:11]} Rc3 {[%emt 0:00:23]} 40. Ra2 {[%emt 0:01:22]} Qa6 {[%emt 0:00:40]} 41. Bc2 {[%emt 0:31:27]} Qa5 {[%emt 0:05:58]} 42. Rab2 {[%emt 0:00:00]} Rac8 {[%emt 0:05:04]} 43. Bb3 {[%emt 0:00:00]} Qa6 {[%emt 0:01:14]} 44. Rc2 {[%emt 0:00:00]} Rxc2 {[%emt 0:00:45]} 45. Bxc2 {[%emt 0:00:00]} Qc4 {[%emt 0:00:54]} 46. Bb3 {[%emt 0:00:00]} Qc3 {[%emt 0:01:36]} 47. h4 {[%emt 0:00:00]} h5 {[%emt 0:01:25]} 48. Kh2 {[%emt 0:00:00]} Rc6 {[%emt 0:00:31]} 49. Kg2 {[%emt 0:00:00]} Bd7 {[%emt 0:00:27]} 50. Ra1 {[%emt 0:00:00]} Bc8 {[%emt 0:01:49]} 51. Ra2 {[%emt 0:00:00]} Bb7 {[%emt 0:05:41]} 52. Rd2 {[%emt 0:00:00]} Qb4 {[%emt 0:00:42]} 53. Rd3 {[%emt 0:00:00]} Ba6 {[%emt 0:00:48]} 54. Re3 {[%emt 0:00:17]} Bc4 {[%emt 0:01:44]} 55. Bc2 {[%emt 0:00:17]} Ba2 {[%emt 0:02:46]} 56. Rd3 {[%emt 0:02:18]} Kg7 {[%emt 0:02:56]} 57. Re3 {[%emt 0:00:40]} Kg8 {[%emt 0:00:22]} 58. Rd3 {[%emt 0:00:14]} Qc4 1/2-1/2

[Event "GER-chT States Women 2022"]
[Site "Braunfels"]
[Date "2022.06.16"]
[Round "1.36"]
[White "Just, Anita"]
[Black "Marx, Christina"]
[Result "1/2-1/2"]
[ECO "B59"]
[WhiteElo "1895"]
[BlackElo "1587"]
[Annotator "NA RC COMBH"]
[PlyCount "112"]
[EventDate "2022.06.15"]
[EventType "swiss"]
[EventCountry "GER"]
[SourceTitle "playchess.com"]
[Source "ChessBase"]
[SourceQuality "1"]
[TimeControl "40/5400+30:1800+30"]

1. e4 {[%emt 0:00:03]} c5 {[%emt 0:00:01]} 2. Nf3 {[%emt 0:00:02]} Nc6 {[%emt 0:00:02]} 3. d4 {[%emt 0:00:03]} cxd4 {[%emt 0:00:02]} 4. Nxd4 {[%emt 0:00:02]} d6 {[%emt 0:01:03]} 5. Nc3 {[%emt 0:00:35]} Nf6 {[%emt 0:00:45]} 6. Be2 {[%emt 0:01:13]} e5 {[%emt 0:00:45]} 7. Nb3 {[%emt 0:00:14]} Be6 {[%emt 0:01:14]} 8. O-O {[%emt 0:00:40]} Be7 {[%emt 0:00:06]} 9. f4 {[%emt 0:01:37]} exf4 {[%emt 0:04:48]} 10. Bxf4 {[%emt 0:00:40]} O-O {[%emt 0:01:13]} 11. Kh1 {[%emt 0:05:20]} a6 {[%emt 0:04:31]} 12. Qd2 {[%emt 0:04:51]} d5 {[%emt 0:10:19]} 13. e5 {[%emt 0:05:24]} Ne8 {[%emt 0:12:49]} 14. Rad1 {[%emt 0:05:59]} Nc7 {[%emt 0:06:10]} 15. Bf3 {[%emt 0:03:12]} Bb4 {[%emt 0:00:48]} 16. Qf2 {[%emt 0:03:05]} Bxc3 {[%emt 0:04:44]} 17. bxc3 {[%emt 0:00:06]} Qe7 {[%emt 0:06:36]} 18. Qg3 {[%emt 0:02:35]} Kh8 {[%emt 0:01:56]} 19. Rd3 {[%emt 0:08:37]} Bf5 {[%emt 0:05:16]} 20. Rd2 {[%emt 0:01:17]} Rad8 {[%emt 0:02:10]} 21. Bg5 {[%emt 0:05:48]} f6 {[%emt 0:00:51]} 22. exf6 {[%emt 0:00:37]} gxf6 {[%emt 0:00:30]} 23. Bh6 {[%emt 0:03:48]} Rg8 {[%emt 0:04:18]} 24. Qf2 {[%emt 0:02:26]} Rg6 {[%emt 0:06:24]} 25. Bf4 {[%emt 0:03:38]} Be4 {[%emt 0:05:06]} 26. Re1 {[%emt 0:12:58]} f5 {[%emt 0:03:25]} 27. Nd4 {[%emt 0:03:04]} Nxd4 {[%emt 0:06:24]} 28. Qxd4+ {[%emt 0:00:16]} Kg8 {[%emt 0:00:30]} 29. c4 {[%emt 0:08:22]} Ne6 {[%emt 0:01:33]} 30. Qe5 {[%emt 0:00:40]} Qh4 {[%emt 0:01:34]} 31. Bg3 {[%emt 0:01:17]} Qg5 {[%emt 0:00:50]} 32. Rf2 {[%emt 0:01:49]} f4 {[%emt 0:02:47]} 33. Qxg5 {[%emt 0:00:57]} Nxg5 {[%emt 0:01:01]} 34. Bxf4 {[%emt 0:01:56]} Bxf3 {[%emt 0:01:01]} 35. Bxg5 {[%emt 0:01:02]} Rxg5 {[%emt 0:00:27]} 36. Rxf3 {[%emt 0:02:45]} dxc4 {[%emt 0:00:06]} 37. Kg1 {[%emt 0:04:26]} b5 {[%emt 0:01:13]} 38. Rfe3 {[%emt 0:01:15]} Rf8 {[%emt 0:01:11]} 39. Re6 {[%emt 0:00:47]} a5 {[%emt 0:00:42]} 40. R6e5 {[%emt 0:01:49]} Rff5 {[%emt 0:03:02]} 41. Re7 {[%emt 0:34:29]} Rf7 {[%emt 0:02:49]} 42. g3 {[%emt 0:00:00]} c3 {[%emt 0:07:37]} 43. Rxf7 {[%emt 0:00:00]} Kxf7 {[%emt 0:00:05]} 44. Kf2 {[%emt 0:00:00]} Kf6 {[%emt 0:00:58]} 45. Re3 {[%emt 0:00:00]} b4 {[%emt 0:00:18]} 46. Rd3 {[%emt 0:00:00]} Re5 {[%emt 0:01:28]} 47. g4 {[%emt 0:00:00]} Ke6 {[%emt 0:04:22]} 48. Rd4 {[%emt 0:00:00]} Rd5 {[%emt 0:00:49]} 49. Ke3 {[%emt 0:00:00]} Ke5 {[%emt 0:03:56]} 50. Re4+ {[%emt 0:00:00]} Kd6 {[%emt 0:00:05]} 51. Rc4 {[%emt 0:00:00]} Re5+ {[%emt 0:03:10]} 52. Kf2 {[%emt 0:01:41]} Rd5 {[%emt 0:00:39]} 53. Ke3 {[%emt 0:00:12]} Re5+ {[%emt 0:00:13]} 54. Kf2 {[%emt 0:00:05]} Rd5 {[%emt 0:00:06]} 55. Ke3 {[%emt 0:00:08]} Re5+ 56. Kd3 Rd5+ 1/2-1/2

[Event "GER-chT States Women 2022"]
[Site "Braunfels"]
[Date "2022.06.16"]
[Round "1.37"]
[White "Mueller, Riyanna"]
[Black "Lowke, Kathrin"]
[Result "1/2-1/2"]
[ECO "B22"]
[WhiteElo "1521"]
[BlackElo "1850"]
[Annotator "NA RC COMBH"]
[PlyCount "144"]
[EventDate "2022.06.15"]
[EventType "swiss"]
[EventCountry "GER"]
[SourceTitle "playchess.com"]
[Source "ChessBase"]
[SourceQuality "1"]
[TimeControl "40/5400+30:1800+30"]

1. e4 {[%emt 0:00:03]} c5 {[%emt 0:00:11]} 2. c3 {[%emt 0:00:09]} d6 {[%emt 0:01:43]} 3. g3 {[%emt 0:04:25]} Nf6 {[%emt 0:00:23]} 4. Bg2 {[%emt 0:00:14]} g6 {[%emt 0:00:10]} 5. Ne2 {[%emt 0:00:12]} Bg7 {[%emt 0:00:18]} 6. O-O {[%emt 0:01:00]} O-O {[%emt 0:00:38]} 7. h3 {[%emt 0:04:41]} Nc6 {[%emt 0:04:40]} 8. d4 {[%emt 0:00:33]} Bd7 {[%emt 0:02:36]} 9. Be3 {[%emt 0:02:43]} cxd4 {[%emt 0:01:26]} 10. cxd4 {[%emt 0:00:22]} Qa5 {[%emt 0:07:13]} 11. Nbc3 {[%emt 0:03:49]} Rac8 {[%emt 0:15:10]} 12. Rc1 {[%emt 0:04:14]} Rfd8 {[%emt 0:11:31]} 13. Qd2 {[%emt 0:20:36]} b5 {[%emt 0:06:12]} 14. d5 {[%emt 0:09:41]} Ne5 {[%emt 0:01:35]} 15. b3 {[%emt 0:00:34]} b4 {[%emt 0:00:34]} 16. f4 {[%emt 0:00:50]} bxc3 {[%emt 0:02:31]} 17. Nxc3 {[%emt 0:00:20]} Neg4 {[%emt 0:05:37]} 18. hxg4 {[%emt 0:00:38]} Nxg4 {[%emt 0:00:45]} 19. Bd4 {[%emt 0:00:39]} Qb4 {[%emt 0:06:50]} 20. Bxg7 {[%emt 0:04:21]} Kxg7 {[%emt 0:00:13]} 21. Rfd1 {[%emt 0:08:51]} Rc5 {[%emt 0:04:54]} 22. Bf1 {[%emt 0:08:52]} Rdc8 {[%emt 0:02:23]} 23. Bc4 {[%emt 0:00:19]} Qb6 {[%emt 0:02:44]} 24. Qd4+ {[%emt 0:02:40]} f6 {[%emt 0:00:54]} 25. Kg2 {[%emt 0:06:51]} R5c7 {[%emt 0:03:30]} 26. Kf3 {[%emt 0:00:59]} Qb4 {[%emt 0:03:29]} 27. Rc2 {[%emt 0:02:10]} h5 {[%emt 0:02:48]} 28. Re1 {[%emt 0:02:53]} Rf8 {[%emt 0:03:55]} 29. Kg2 {[%emt 0:01:26]} Kh7 {[%emt 0:00:43]} 30. Rce2 {[%emt 0:01:40]} a5 {[%emt 0:00:42]} 31. Qd3 {[%emt 0:01:13]} a4 {[%emt 0:01:40]} 32. Rc2 {[%emt 0:04:15]} Rfc8 {[%emt 0:01:19]} 33. Ree2 {[%emt 0:01:07]} Nh6 {[%emt 0:02:21]} 34. Qd4 {[%emt 0:02:40]} Nf7 {[%emt 0:00:28]} 35. Kf3 {[%emt 0:00:38]} Bg4+ {[%emt 0:00:05]} 36. Ke3 {[%emt 0:00:13]} Bxe2 {[%emt 0:00:12]} 37. Kxe2 {[%emt 0:00:05]} axb3 {[%emt 0:00:39]} 38. axb3 {[%emt 0:00:13]} Rc5 {[%emt 0:02:29]} 39. Kd3 {[%emt 0:00:44]} Qa3 {[%emt 0:00:55]} 40. Kd2 {[%emt 0:00:33]} Ra5 {[%emt 0:01:47]} 41. Na4 {[%emt 0:31:55]} Qb4+ {[%emt 0:30:16]} 42. Kd3 {[%emt 0:00:00]} Qe1 {[%emt 0:00:00]} 43. Qe3 {[%emt 0:00:00]} Qf1+ {[%emt 0:00:00]} 44. Kd4 {[%emt 0:00:00]} Qd1+ {[%emt 0:00:00]} 45. Rd2 {[%emt 0:00:00]} Qa1+ {[%emt 0:00:00]} 46. Kd3 {[%emt 0:00:00]} Rxa4 {[%emt 0:00:00]} 47. bxa4 {[%emt 0:00:00]} Qa3+ {[%emt 0:00:00]} 48. Ke2 {[%emt 0:00:00]} Qxe3+ {[%emt 0:00:00]} 49. Kxe3 {[%emt 0:00:00]} Rxc4 {[%emt 0:00:00]} 50. Ra2 {[%emt 0:00:00]} Rc8 {[%emt 0:00:00]} 51. a5 {[%emt 0:00:00]} Ra8 {[%emt 0:00:00]} 52. a6 {[%emt 0:00:00]} Nd8 {[%emt 0:00:00]} 53. Kd4 {[%emt 0:00:00]} Ra7 {[%emt 0:00:00]} 54. Kc4 {[%emt 0:00:00]} Nb7 {[%emt 0:00:00]} 55. axb7 {[%emt 0:00:00]} Rxb7 {[%emt 0:00:00]} 56. Ra3 {[%emt 0:00:00]} Kg7 {[%emt 0:00:00]} 57. Re3 {[%emt 0:00:00]} Rb1 {[%emt 0:00:00]} 58. e5 {[%emt 0:00:00]} Rc1+ {[%emt 0:00:00]} 59. Kd4 {[%emt 0:00:00]} Rd1+ {[%emt 0:00:00]} 60. Kc4 {[%emt 0:00:00]} Rc1+ {[%emt 0:00:00]} 61. Kd4 {[%emt 0:00:00]} fxe5+ {[%emt 0:06:21]} 62. fxe5 {[%emt 0:00:00]} dxe5+ {[%emt 0:00:13]} 63. Kxe5 {[%emt 0:00:00]} Rf1 {[%emt 0:02:08]} 64. Ke6 {[%emt 0:00:00]} Kf8 {[%emt 0:00:24]} 65. Ke5 {[%emt 0:00:00]} Rf6 {[%emt 0:00:30]} 66. Rd3 {[%emt 0:00:00]} Kf7 {[%emt 0:00:30]} 67. Re3 {[%emt 0:00:00]} Ke8 {[%emt 0:00:53]} 68. Rd3 {[%emt 0:00:00]} Kd7 {[%emt 0:00:43]} 69. Ra3 {[%emt 0:00:00]} Rf5+ {[%emt 0:00:37]} 70. Ke4 {[%emt 0:00:00]} Rf6 {[%emt 0:01:29]} 71. Ke5 {[%emt 0:00:00]} Rf5+ {[%emt 0:00:04]} 72. Ke4 {[%emt 0:00:00]} Rf6 {[%emt 0:01:12]} 1/2-1/2

[Event "GER-chT States Women 2022"]
[Site "Braunfels"]
[Date "2022.06.16"]
[Round "1.38"]
[White "Kosovska, Olena"]
[Black "Anisimova, Mariya"]
[Result "1-0"]
[ECO "C78"]
[WhiteElo "1827"]
[BlackElo "1386"]
[Annotator "NA COMBH"]
[PlyCount "113"]
[EventDate "2022.06.15"]
[EventType "swiss"]
[EventCountry "GER"]
[SourceTitle "playchess.com"]
[Source "ChessBase"]
[SourceQuality "1"]
[TimeControl "40/5400+30:1800+30"]

1. e4 {[%emt 0:00:04]} e5 {[%emt 0:00:04]} 2. Nf3 {[%emt 0:00:04]} Nc6 {[%emt 0:00:05]} 3. Bb5 {[%emt 0:00:05]} a6 {[%emt 0:00:07]} 4. Ba4 {[%emt 0:00:03]} Nf6 {[%emt 0:00:17]} 5. O-O {[%emt 0:00:09]} b5 {[%emt 0:00:29]} 6. Bb3 {[%emt 0:00:05]} Bc5 {[%emt 0:00:30]} 7. Re1 {[%emt 0:01:28]} d6 {[%emt 0:02:12]} 8. h3 {[%emt 0:00:12]} O-O {[%emt 0:02:34]} 9. c3 {[%emt 0:00:11]} h6 {[%emt 0:08:52]} 10. d4 {[%emt 0:00:32]} Bb6 {[%emt 0:02:01]} 11. Qd3 {[%emt 0:05:22]} Bb7 {[%emt 0:05:11]} 12. Be3 {[%emt 0:05:32]} Re8 {[%emt 0:09:38]} 13. d5 {[%emt 0:02:30]} Ne7 {[%emt 0:00:19]} 14. Bxb6 {[%emt 0:01:35]} cxb6 {[%emt 0:00:08]} 15. Nbd2 {[%emt 0:01:36]} Ng6 {[%emt 0:01:17]} 16. Nf1 {[%emt 0:06:04]} Nf4 {[%emt 0:05:31]} 17. Qe3 {[%emt 0:02:11]} Bc8 {[%emt 0:08:20]} 18. N3h2 {[%emt 0:09:17]} N6h5 {[%emt 0:12:28]} 19. Bd1 {[%emt 0:09:20]} f5 {[%emt 0:07:42]} 20. Bxh5 {[%emt 0:07:24]} Nxh5 {[%emt 0:00:16]} 21. exf5 {[%emt 0:00:22]} Bxf5 {[%emt 0:00:25]} 22. g4 {[%emt 0:01:46]} Nf4 {[%emt 0:01:12]} 23. gxf5 {[%emt 0:07:16]} Qg5+ {[%emt 0:02:13]} 24. Ng3 {[%emt 0:20:29]} Nxh3+ {[%emt 0:02:34]} 25. Kf1 {[%emt 0:03:19]} Nf4 {[%emt 0:00:45]} 26. Qf3 {[%emt 0:09:12]} Qh4 {[%emt 0:06:31]} 27. Kg1 {[%emt 0:01:40]} Nh3+ {[%emt 0:01:30]} 28. Kg2 {[%emt 0:02:26]} Nf4+ {[%emt 0:06:09]} 29. Kh1 {[%emt 0:01:37]} h5 {[%emt 0:01:31]} 30. Ne4 {[%emt 0:01:24]} Qe7 {[%emt 0:03:06]} 31. Rg1 {[%emt 0:00:46]} g6 {[%emt 0:02:29]} 32. fxg6 {[%emt 0:00:54]} Rf8 {[%emt 0:00:09]} 33. Rg5 {[%emt 0:00:58]} Kg7 {[%emt 0:03:14]} 34. Rag1 {[%emt 0:00:46]} Rh8 {[%emt 0:00:44]} 35. Rf5 {[%emt 0:00:37]} Raf8 {[%emt 0:00:14]} 36. Rxf8 {[%emt 0:00:08]} Rxf8 {[%emt 0:00:05]} 37. Ng3 {[%emt 0:00:19]} Qh4 {[%emt 0:01:17]} 38. b3 {[%emt 0:00:51]} Kg8 {[%emt 0:03:43]} 39. g7 {[%emt 0:00:38]} Rf7 {[%emt 0:00:13]} 40. Ne2 {[%emt 0:00:47]} a5 {[%emt 0:02:28]} 41. Rg3 {[%emt 0:14:18]} Qe7 {[%emt 0:03:54]} 42. Nxf4 {[%emt 0:05:24]} exf4 {[%emt 0:00:16]} 43. Qxh5 {[%emt 0:02:55]} Qe4+ {[%emt 0:01:21]} 44. Nf3 {[%emt 0:01:19]} Rxg7 {[%emt 0:01:11]} 45. Rxg7+ {[%emt 0:00:23]} Kxg7 {[%emt 0:00:07]} 46. Kg2 {[%emt 0:01:32]} a4 {[%emt 0:00:08]} 47. Qg4+ {[%emt 0:00:28]} Kf7 {[%emt 0:00:33]} 48. Qd7+ {[%emt 0:00:53]} Kg6 {[%emt 0:01:11]} 49. Qxd6+ {[%emt 0:00:23]} Kh5 {[%emt 0:00:07]} 50. Qe5+ {[%emt 0:02:11]} Qxe5 {[%emt 0:00:16]} 51. Nxe5 {[%emt 0:00:04]} axb3 {[%emt 0:00:18]} 52. axb3 {[%emt 0:00:07]} Kg5 {[%emt 0:00:04]} 53. d6 {[%emt 0:00:39]} Kf6 {[%emt 0:00:14]} 54. d7 {[%emt 0:00:05]} Ke7 {[%emt 0:00:04]} 55. Kf3 {[%emt 0:00:10]} b4 {[%emt 0:00:25]} 56. c4 {[%emt 0:00:14]} Kd8 {[%emt 0:00:19]} 57. Kxf4 {[%emt 0:00:08]} 1-0